bitfinex/quotes_SOLUSD_20240705
["timestamp","ask_amount","ask_price","bid_price","bid_amount"]
[1720152466734,0.80677693,123.97,123.93,8.0685]
[1720152466926,0.80677693,123.97,123.93,8.0688]
[1720152467123,0.80677693,123.97,123.94,8.0683]
[1720152467348,0.80677693,123.97,123.92,20.1733]
[1720152467839,0.80677693,123.97,123.93,20.17]
[1720152468021,0.80677693,123.97,123.93,28.2386]
[1720152468223,0.80677693,123.97,123.94,20.1702]
[1720152468450,0.80677693,123.97,123.95,20.0]
[1720152469046,0.80677693,123.97,123.96,8.0671]
[1720152469259,0.80677693,123.97,123.96,28.2371]
[1720152469624,0.80677693,123.97,123.96,20.17]
[1720152471338,0.80677693,123.97,123.96,0.17]
[1720152473638,0.80677693,123.97,123.96,8.2371]
[1720152473838,0.80677693,123.97,123.96,28.2371]
[1720152474359,0.80677693,123.97,123.96,20.17]
[1720152474659,0.80677693,123.97,123.96,28.2371]
[1720152474854,0.80677693,123.97,123.96,20.17]
[1720152475082,0.80677693,123.97,123.96,20.0]
[1720152475266,0.80677693,123.97,123.95,20.0]
[1720152475564,0.80677693,123.97,123.95,28.0676]
[1720152475934,0.80677693,123.97,123.96,8.2371]
[1720152476159,0.80677693,123.97,123.96,28.2371]
[1720152476367,0.80677693,123.97,123.91,26.60488651]
[1720152476966,25.01677693,123.97,123.91,6.42968651]
[1720152477148,0.80677693,123.97,123.91,6.42968651]
[1720152477463,0.80677693,123.97,123.91,14.49978651]
[1720152477668,0.80677693,123.97,123.91,14.49988651]
[1720152477851,0.80677693,123.97,123.91,6.42968651]
[1720152478055,25.01677693,123.97,123.91,6.42968651]
[1720152480177,32.2778,123.95,123.91,0.1]
[1720152480357,24.21,123.94,123.91,0.1]
[1720152481281,40.2281,123.96,123.91,0.1]
[1720152483187,0.80677693,123.97,123.92,8.0696]
[1720152483478,0.80677693,123.97,123.93,20.0]
[1720152483987,0.80677693,123.97,123.92,28.0692]
[1720152484185,0.80677693,123.97,123.93,0.17]
[1720152484479,22.627,124.04,123.97,8.0663]
[1720152484679,22.627,124.04,123.96,0.17]
[1720152484982,0.80664677,123.98,123.93,0.17]
[1720152485185,0.80664677,123.98,123.93,8.2389]
[1720152485487,0.80664677,123.98,123.94,28.0683]
[1720152485684,0.80664677,123.98,123.91,6.58775066]
[1720152486152,0.80664677,123.98,123.93,20.1716]
[1720152486354,0.80664677,123.98,123.93,28.24]
[1720152486981,0.80664677,123.98,123.94,20.0]
[1720152487372,0.80664677,123.98,123.94,28.0682]
[1720152487575,0.80664677,123.98,123.96,8.067]
[1720152487883,0.80664677,123.98,123.95,20.3387]
[1720152488057,0.80664677,123.98,123.96,20.0]
[1720152488878,0.80664677,123.98,123.94,20.0]
[1720152489082,0.80664677,123.98,123.96,8.0668]
[1720152489264,0.80664677,123.98,123.97,8.2364]
[1720152489466,0.80664677,123.98,123.97,28.0664]
[1720152489659,0.80664677,123.98,123.97,28.2364]
[1720152489984,0.80664677,123.98,123.97,20.17]
[1720152491384,0.80664677,123.98,123.97,28.2364]
[1720152491904,0.80664677,123.98,123.97,20.0]
[1720152492465,0.80664677,123.98,123.91,6.58775066]
[1720152492678,0.80664677,123.98,123.92,28.2392]
[1720152492884,0.80664677,123.98,123.91,6.58775066]
[1720152493181,0.80664677,123.98,123.92,8.0692]
[1720152493995,0.80664677,123.98,123.91,6.58775066]
[1720152494298,0.80664677,123.98,123.92,0.17]
[1720152494874,0.80664677,123.98,123.92,8.2392]
[1720152495078,0.80664677,123.98,123.93,28.0689]
[1720152495290,0.80664677,123.98,123.94,0.17]
[1720152495670,0.80664677,123.98,123.97,8.0664]
[1720152495987,0.80664677,123.98,123.97,20.0]
[1720152496366,0.80664677,123.98,123.94,8.2377]
[1720152496599,0.80664677,123.98,123.95,8.0676]
[1720152496889,0.80664677,123.98,123.91,57.24775066]
[1720152497093,0.80664677,123.98,123.94,8.0682]
[1720152497293,0.80664677,123.98,123.95,0.17]
[1720152497496,0.80664677,123.98,123.94,20.17]
[1720152497991,0.80664677,123.98,123.95,20.1686]
[1720152498173,0.80664677,123.98,123.95,28.2362]
[1720152498372,0.80664677,123.98,123.94,20.17]
[1720152498785,0.80664677,123.98,123.94,20.0]
[1720152498965,0.80664677,123.98,123.93,28.0689]
[1720152499370,0.80664677,123.98,123.94,8.0684]
[1720152499565,0.80664677,123.98,123.95,20.0]
[1720152500072,0.80664677,123.98,123.94,40.1704]
[1720152500286,0.80664677,123.98,123.97,8.0664]
[1720152500477,0.80664677,123.98,123.97,20.17]
[1720152500677,0.80664677,123.98,123.97,20.0]
[1720152501501,0.80664677,123.98,123.96,20.0]
[1720152502002,0.80664677,123.98,123.95,20.3387]
[1720152502177,0.80664677,123.98,123.96,20.0]
[1720152502383,0.80664677,123.98,123.96,28.0666]
[1720152503478,0.80664677,123.98,123.96,20.0]
[1720152503984,0.80664677,123.98,123.91,57.24775066]
[1720152503985,0.80664677,123.98,123.92,20.1742]
[1720152504177,0.80664677,123.98,123.93,28.069]
[1720152504368,0.80664677,123.98,123.94,8.0684]
[1720152504702,0.80664677,123.98,123.95,20.0]
[1720152504997,54.8991,124.04,123.93,20.0]
[1720152505196,0.17,124.03,123.93,20.0]
[1720152505391,24.21,124.02,123.92,20.1742]
[1720152505801,24.21,124.02,123.92,28.2434]
[1720152506872,24.38,124.03,123.93,28.239]
[1720152507678,32.4426,124.03,123.93,20.17]
[1720152508179,24.38,124.03,123.94,8.0681]
[1720152508472,24.38,124.03,123.93,20.17]
[1720152508680,24.21,124.03,123.96,20.1673]
[1720152509107,24.21,124.03,123.97,20.0]
[1720152509479,24.21,124.03,123.96,28.2339]
[1720152509801,24.21,124.03,123.93,28.2409]
[1720152510003,24.21,124.03,123.94,28.2384]
[1720152510477,24.21,124.03,123.94,20.17]
[1720152511307,0.17,124.02,123.94,20.0]
[1720152511487,0.17,124.02,123.93,8.0685]
[1720152511801,0.17,124.02,123.94,20.0]
[1720152512306,0.17,124.02,123.93,28.0689]
[1720152513281,24.21,124.03,123.94,0.17]
[1720152513501,24.21,124.03,123.94,8.2383]
[1720152514505,24.21,124.03,123.94,0.17]
[1720152514882,32.2725,124.03,123.94,0.17]
[1720152515502,24.21,124.01,123.93,20.0]
[1720152517112,0.17,124.02,123.93,28.0689]
[1720152517312,0.17,124.02,123.93,20.0]
[1720152517526,0.17,124.02,123.94,0.17]
[1720152518316,0.17,124.02,123.93,20.0]
[1720152518526,0.17,124.02,123.93,28.0689]
[1720152519004,24.21,124.03,123.93,28.0689]
[1720152519321,24.21,124.03,123.94,8.2383]
[1720152519719,24.21,124.03,123.94,20.3405]
[1720152519921,24.21,124.03,123.94,28.4087]
[1720152520904,22.627,124.04,123.95,8.0674]
[1720152521102,46.837,124.04,123.96,0.17]
[1720152521301,46.837,124.04,123.94,28.2387]
[1720152521501,46.837,124.04,123.95,0.17]
[1720152522129,46.837,124.04,123.95,8.2377]
[1720152522502,46.837,124.04,123.95,0.17]
[1720152523303,46.837,124.04,123.95,8.2377]
[1720152523513,46.837,124.04,123.96,48.2341]
[1720152523723,46.837,124.04,123.96,20.1672]
[1720152524026,46.837,124.04,123.95,0.17]
[1720152524208,46.837,124.04,123.94,50.83]
[1720152524412,46.837,124.04,123.97,8.0662]
[1720152524641,46.837,124.04,123.98,20.17]
[1720152524930,0.80658171,124.0,123.98,20.17]
[1720152525102,0.80658171,124.0,123.99,8.0651]
[1720152525306,0.80658171,124.0,123.99,28.2351]
[1720152525610,0.80658171,124.0,123.94,20.17]
[1720152525808,0.80658171,124.0,123.95,20.0]
[1720152526116,0.80658171,124.0,123.95,28.0675]
[1720152526617,0.72613771,124.0,123.95,20.0]
[1720152527003,0.72613771,124.0,123.95,28.0676]
[1720152527423,0.72613771,124.0,123.95,20.0]
[1720152528210,0.72613771,124.0,123.95,28.0673]
[1720152529232,0.72613771,124.0,123.95,20.0]
[1720152529810,0.72613771,124.0,123.95,28.0676]
[1720152530015,0.72613771,124.0,123.94,0.17]
[1720152530211,0.72613771,124.0,123.92,20.0]
[1720152530415,0.72613771,124.0,123.92,28.0692]
[1720152530826,0.72613771,124.0,123.93,8.0689]
[1720152531145,0.72613771,124.0,123.94,20.0]
[1720152532910,0.72613771,124.0,123.93,20.0]
[1720152533316,0.72613771,124.0,123.93,28.069]
[1720152533510,0.72613771,124.0,123.93,20.0]
[1720152535820,0.72613771,124.0,123.93,65.04]
[1720152536618,0.72613771,124.0,123.91,0.1]
[1720152536924,24.38,123.99,123.91,0.1]
[1720152537830,24.21,123.99,123.92,8.0696]
[1720152538034,0.72613771,124.0,123.93,8.0689]
[1720152538035,24.93613771,124.0,123.93,8.0689]
[1720152538721,24.93613771,124.0,123.92,20.1733]
[1720152538722,0.72613771,124.0,123.92,20.1733]
[1720152538930,0.72613771,124.0,123.93,20.17]
[1720152539124,0.72613771,124.0,123.95,8.0676]
[1720152539323,0.72613771,124.0,123.98,20.164]
[1720152539520,6.3196,124.05,123.99,20.17]
[1720152539737,6.3196,124.05,123.99,20.0]
[1720152540029,6.6168,124.08,124.0,0.17]
[1720152540355,6.6168,124.08,124.04,28.2158]
[1720152540528,15.302,124.1,124.04,28.2158]
[1720152541032,15.302,124.1,124.03,0.17]
[1720152541236,15.302,124.1,124.03,20.17]
[1720152541853,15.302,124.1,124.03,28.2322]
[1720152542455,15.302,124.1,124.04,8.0618]
[1720152542753,24.21,124.09,124.03,20.0]
[1720152543050,39.512,124.1,124.01,20.0]
[1720152543227,39.512,124.1,124.03,8.0622]
[1720152543432,39.512,124.1,124.04,20.0]
[1720152543949,0.17,124.09,124.04,20.0]
[1720152544152,0.17,124.09,123.99,20.1619]
[1720152544328,0.17,124.09,123.98,66.36414605]
[1720152544329,24.21,124.08,123.98,66.36414605]
[1720152544530,24.21,124.05,123.97,60.03814408]
[1720152544731,0.80664677,123.98,123.96,78.9338]
[1720152545334,0.80664677,123.98,123.97,8.0664]
[1720152546353,0.80664677,123.98,123.97,28.2364]
[1720152546552,6.1795,124.09,124.02,20.1564]
[1720152546765,6.1795,124.09,123.97,29.02845242]
[1720152547054,24.21,124.08,123.99,28.2269]
[1720152547253,24.21,124.08,124.0,20.0]
[1720152547462,24.21,124.08,124.0,28.0645]
[1720152549236,24.21,124.08,124.0,20.0]
[1720152549854,24.21,124.08,124.01,0.17]
[1720152551067,6.1795,124.09,124.01,0.17]
[1720152551438,6.1795,124.09,124.03,20.1558]
[1720152551638,30.3895,124.09,124.01,20.17]
[1720152551852,30.3895,124.09,124.01,28.2334]
[1720152552046,30.3895,124.09,124.01,20.17]
[1720152552258,30.3895,124.09,124.01,20.0]
[1720152552473,0.17,124.08,124.01,20.0]
[1720152552760,0.17,124.08,123.97,20.1649]
[1720152552761,24.21,124.06,123.97,80.20304408]
[1720152552956,24.21,124.06,123.93,295.6422]
[1720152552957,39.6658,124.05,123.93,151.09972217]
[1720152553161,39.6658,124.05,123.99,8.0651]
[1720152553546,39.6658,124.05,123.98,8.0655]
[1720152553733,39.6658,124.05,123.96,20.1673]
[1720152553942,15.4558,124.05,123.96,20.1673]
[1720152554164,15.4558,124.05,123.99,8.065]
[1720152554466,15.4558,124.05,123.98,28.2293]
[1720152554658,15.4558,124.05,123.99,28.0651]
[1720152555053,15.4558,124.05,124.0,8.0642]
[1720152555366,15.4558,124.05,123.99,28.0649]
[1720152556364,15.4558,124.05,123.99,20.0]
[1720152557065,15.4558,124.05,123.99,59.62671043]
[1720152557245,15.4558,124.05,123.99,20.0]
[1720152557758,39.6658,124.05,123.99,20.0]
[1720152558138,39.6658,124.05,124.0,39.62351473]
[1720152558338,39.6658,124.05,123.97,8.0662]
[1720152558545,39.6658,124.05,123.98,20.0]
[1720152559035,39.6658,124.05,123.97,67.69940338]
[1720152559242,39.6658,124.05,123.98,8.0657]
[1720152559765,39.6658,124.05,123.98,39.62990665]
[1720152559954,39.6658,124.05,123.97,40.1657]
[1720152560140,39.6658,124.05,123.97,48.232]
[1720152561265,15.4558,124.05,124.03,8.0623]
[1720152561443,15.2851,124.08,124.02,8.063]
[1720152561642,15.2851,124.08,124.04,8.0618]
[1720152561842,15.2851,124.08,124.02,0.17]
[1720152562065,39.4951,124.08,124.01,28.0637]
[1720152562570,39.4951,124.08,124.01,20.0]
[1720152563067,39.4951,124.08,124.01,28.0638]
[1720152563243,39.4951,124.08,124.01,20.0]
[1720152563447,39.4951,124.08,123.97,70.8649]
[1720152563657,39.4951,124.08,124.0,8.0645]
[1720152563960,6.3799,124.07,123.99,30.0]
[1720152564161,24.38,124.06,123.99,30.0]
[1720152564469,24.21,124.04,123.95,28.2359]
[1720152564766,0.80677693,123.97,123.94,8.0682]
[1720152565275,0.80677693,123.97,123.94,28.2388]
[1720152565654,0.80677693,123.97,123.92,8.0693]
[1720152566562,0.80677693,123.97,123.93,8.0689]
[1720152567893,0.80677693,123.97,123.91,20.2747]
[1720152568056,0.80677693,123.97,123.92,28.0695]
[1720152568385,0.80677693,123.97,123.93,20.172]
[1720152568677,0.80677693,123.97,123.94,28.0684]
[1720152568850,0.80677693,123.97,123.94,20.0]
[1720152570156,0.80677693,123.97,123.91,58.8698]
[1720152570388,0.80677693,123.97,123.92,20.3438]
[1720152571079,0.80677693,123.97,123.92,28.4133]
[1720152571582,0.80677693,123.97,123.92,20.3438]
[1720152571790,0.80677693,123.97,123.91,0.1]
[1720152573368,24.21,123.95,123.91,0.1]
[1720152574265,0.17,123.94,123.91,0.1]
[1720152577883,0.17,123.94,123.85,20.1851]
[1720152580789,0.17,123.94,123.84,8.12254744]
[1720152581680,0.17,123.94,123.84,0.04784744]
[1720152581888,24.21,123.89,123.84,0.04784744]
[1720152582467,24.21,123.87,123.84,0.04784744]
[1720152584676,24.21,123.85,123.81,0.311344]
[1720152584874,0.17,123.84,123.81,0.311344]
[1720152585396,24.21,123.85,123.81,0.311344]
[1720152586387,47.2264,123.83,123.74,14.6252081]
[1720152586593,47.2264,123.83,123.71,0.1]
[1720152586594,24.21,123.79,123.71,0.1]
[1720152586891,24.21,123.77,123.71,0.1]
[1720152588469,23.0164,123.78,123.71,0.1]
[1720152588676,23.0164,123.78,123.72,8.0824]
[1720152588971,23.0164,123.78,123.73,8.082]
[1720152589767,6.3628,123.81,123.74,8.0812]
[1720152591163,39.5543,123.82,123.74,8.0812]
[1720152591164,15.3443,123.82,123.74,8.0812]
[1720152591368,6.4879,123.84,123.75,20.3705]
[1720152591586,6.4879,123.84,123.77,20.1977]
[1720152591898,6.4879,123.84,123.78,20.0]
[1720152592210,6.4879,123.84,123.75,0.17]
[1720152592211,6.4879,123.84,123.75,8.2507]
[1720152592513,24.29,123.83,123.75,8.2507]
[1720152593092,24.29,123.83,123.75,0.17]
[1720152593303,0.17,123.82,123.75,20.0]
[1720152593506,8.2467,123.82,123.71,77.2645347]
[1720152593808,8.2467,123.82,123.71,0.1]
[1720152593809,24.29,123.79,123.71,0.1]
[1720152594006,0.80677693,123.86,123.77,8.0793]
[1720152594007,21.7664,123.84,123.77,8.0793]
[1720152594207,21.7664,123.84,123.72,50.7]
[1720152594208,21.7664,123.84,123.72,62.07608566]
[1720152594417,21.7664,123.84,123.74,8.0813]
[1720152595001,24.29,123.83,123.76,8.08]
[1720152595191,24.29,123.83,123.75,28.0806]
[1720152595517,24.29,123.83,123.76,8.08]
[1720152595819,21.7664,123.84,123.77,8.0794]
[1720152596129,46.0564,123.84,123.77,8.0794]
[1720152596609,46.0564,123.84,123.77,8.0788]
[1720152597387,46.0564,123.84,123.76,0.17]
[1720152598299,46.0564,123.84,123.76,8.2501]
[1720152598496,46.0564,123.84,123.77,8.0792]
[1720152598704,46.0564,123.84,123.76,8.25]
[1720152599815,46.0564,123.84,123.76,28.4495]
[1720152599992,46.0564,123.84,123.72,11.37608566]
[1720152600197,0.17,123.83,123.73,20.2045]
[1720152600502,54.1313,123.84,123.73,20.2045]
[1720152600809,0.17,123.83,123.73,20.2045]
[1720152600997,8.2457,123.83,123.72,11.37608566]
[1720152601199,24.29,123.8,123.71,44.10249507]
[1720152601528,24.29,123.8,123.71,0.1]
[1720152601713,24.29,123.8,123.73,8.0819]
[1720152602187,30.6444,123.81,123.72,20.2063]
[1720152602389,30.6444,123.81,123.73,8.0815]
[1720152602735,21.5627,123.84,123.73,91.1078]
[1720152603009,21.5627,123.84,123.78,28.2751]
[1720152603215,21.5627,123.84,123.79,0.17]
[1720152603400,21.5627,123.84,123.79,8.248]
[1720152603797,21.5627,123.84,123.79,0.17]
[1720152604193,21.5627,123.84,123.78,28.2751]
[1720152604194,45.8527,123.84,123.75,28.2814]
[1720152604389,45.8527,123.84,123.76,20.17]
[1720152604613,45.8527,123.84,123.77,20.0]
[1720152604916,45.8527,123.84,123.74,40.203]
[1720152605127,45.8527,123.84,123.76,20.1997]
[1720152605316,21.5627,123.84,123.8,8.077]
[1720152605519,0.80677693,123.86,123.8,8.077]
[1720152605816,0.80677693,123.86,123.79,8.248]
[1720152606006,0.80677693,123.86,123.8,8.0774]
[1720152606213,0.80677693,123.86,123.8,28.2706]
[1720152606523,0.80677693,123.86,123.8,20.1932]
[1720152608119,0.80677693,123.86,123.79,8.248]
[1720152608507,0.80677693,123.86,123.79,0.17]
[1720152608711,0.80677693,123.86,123.78,20.17]
[1720152609029,0.80677693,123.86,123.78,20.0]
[1720152609439,0.80677693,123.86,123.77,20.0]
[1720152610038,0.80677693,123.86,123.77,28.0792]
[1720152610330,0.80677693,123.86,123.79,20.1954]
[1720152610523,0.80677693,123.86,123.79,28.273]
[1720152610731,0.80677693,123.86,123.79,20.1954]
[1720152611733,0.80677693,123.86,123.78,8.2486]
[1720152611918,0.80677693,123.86,123.78,0.17]
[1720152612233,24.29,123.85,123.78,8.0785]
[1720152612438,25.09677693,123.86,123.78,8.0785]
[1720152612627,25.09677693,123.86,123.77,28.2773]
[1720152612812,25.09677693,123.86,123.77,20.1979]
[1720152613833,25.09677693,123.86,123.78,0.17]
[1720152614645,25.09677693,123.86,123.77,20.1979]
[1720152615320,0.17,123.85,123.76,0.17]
[1720152615727,0.17,123.85,123.78,45.16882045]
[1720152615921,6.3627,123.83,123.75,8.0806]
[1720152616234,6.3627,123.83,123.76,45.17611988]
[1720152616235,30.6527,123.83,123.76,45.17611988]
[1720152616411,30.6527,123.83,123.74,8.0813]
[1720152616610,30.6527,123.83,123.74,13.93802482]
[1720152616807,30.6527,123.83,123.74,8.0812]
[1720152617017,30.6527,123.83,123.74,21.62457848]
[1720152617213,30.6527,123.83,123.74,8.0812]
[1720152617429,30.6527,123.83,123.74,21.59750271]
[1720152617749,30.6527,123.83,123.77,8.0793]
[1720152617750,6.3627,123.83,123.77,8.0793]
[1720152617943,6.3627,123.83,123.78,0.17]
[1720152619636,6.3627,123.83,123.77,28.2774]
[1720152620013,6.3627,123.83,123.76,8.25]
[1720152620242,30.6527,123.83,123.74,50.7]
[1720152620548,30.6527,123.83,123.75,20.0]
[1720152621034,38.7283,123.83,123.72,8.0827]
[1720152621552,30.6527,123.83,123.73,20.2044]
[1720152621762,30.6527,123.83,123.75,8.0807]
[1720152622248,30.6527,123.83,123.74,8.0812]
[1720152622452,30.6527,123.83,123.74,8.2512]
[1720152622650,30.6527,123.83,123.74,0.17]
[1720152622852,0.17,123.82,123.72,8.0826]
[1720152623158,0.17,123.82,123.73,28.082]
[1720152623933,24.29,123.79,123.71,8.44591786]
[1720152624143,24.29,123.79,123.71,0.1]
[1720152624753,24.29,123.76,123.71,0.1]
[1720152624954,30.7238,123.75,123.71,0.1]
[1720152626231,6.4338,123.75,123.71,0.1]
[1720152626735,6.4338,123.75,123.71,8.183]
[1720152626948,6.4338,123.75,123.71,0.1]
[1720152627144,6.4338,123.75,123.71,8.1828]
[1720152627955,16.3941,123.77,123.72,8.2526]
[1720152628256,16.3941,123.77,123.72,0.17]
[1720152628453,21.4487,123.83,123.79,8.0781]
[1720152628661,21.4487,123.83,123.78,8.0786]
[1720152628854,21.4487,123.83,123.8,8.077]
[1720152628855,6.0812,123.83,123.8,8.077]
[1720152629069,22.60267693,123.86,123.79,28.4435]
[1720152629268,22.60267693,123.86,123.81,8.0766]
[1720152629641,22.60267693,123.86,123.8,8.0774]
[1720152629841,22.60267693,123.86,123.81,20.17]
[1720152630571,22.60267693,123.86,123.78,50.7]
[1720152630750,22.60267693,123.86,123.8,8.077]
[1720152630947,22.60267693,123.86,123.81,20.0]
[1720152631338,22.60267693,123.86,123.77,8.0788]
[1720152631339,24.29,123.85,123.77,8.0788]
[1720152631677,24.29,123.85,123.78,28.0787]
[1720152632047,24.29,123.85,123.78,20.0]
[1720152632247,24.29,123.85,123.77,20.0]
[1720152632557,24.29,123.85,123.77,8.0793]
[1720152632751,24.29,123.85,123.78,20.0]
[1720152632963,24.29,123.85,123.78,28.0788]
[1720152634279,24.29,123.83,123.72,8.0821]
[1720152634442,24.29,123.83,123.75,8.0807]
[1720152634863,21.7374,123.84,123.76,50.7]
[1720152635039,21.7374,123.84,123.8,8.0772]
[1720152635252,21.7374,123.84,123.82,8.0758]
[1720152635768,0.80677693,123.86,123.82,8.0758]
[1720152635947,0.80677693,123.86,123.81,20.1912]
[1720152636150,0.80677693,123.86,123.82,8.2462]
[1720152636464,0.80677693,123.86,123.82,0.17]
[1720152637963,0.80677693,123.86,123.79,50.7]
[1720152638173,0.80677693,123.86,123.76,8.08]
[1720152638474,24.29,123.83,123.75,20.2013]
[1720152638776,39.5785,123.82,123.75,20.2013]
[1720152639772,39.5785,123.82,123.75,28.2816]
[1720152639976,39.5785,123.82,123.76,8.08]
[1720152640176,15.2885,123.82,123.78,8.0783]
[1720152640478,15.2885,123.82,123.77,20.1973]
[1720152640662,15.2885,123.82,123.77,28.2767]
[1720152640858,39.5785,123.82,123.72,6.34004837]
[1720152641063,39.5785,123.82,123.75,8.0803]
[1720152641485,39.5785,123.82,123.75,8.0807]
[1720152642758,39.5785,123.82,123.74,28.4541]
[1720152643059,39.5785,123.82,123.74,20.2029]
[1720152643260,39.5785,123.82,123.74,28.2841]
[1720152643459,39.5785,123.82,123.71,50.32357003]
[1720152643689,39.5785,123.82,123.71,20.2075]
[1720152643872,24.29,123.8,123.71,20.2075]
[1720152644691,24.29,123.8,123.72,8.0823]
[1720152644868,24.29,123.8,123.73,20.0]
[1720152645268,24.29,123.8,123.73,28.0819]
[1720152645761,24.29,123.8,123.74,8.0813]
[1720152646266,6.5852,123.81,123.75,8.0806]
[1720152646584,30.8752,123.81,123.75,8.0806]
[1720152646767,30.8752,123.81,123.74,8.0812]
[1720152647173,30.8752,123.81,123.73,48.286]
[1720152647484,30.8752,123.81,123.75,8.0803]
[1720152647684,6.5852,123.81,123.75,20.2013]
[1720152647884,6.5852,123.81,123.77,20.1976]
[1720152648768,6.5852,123.81,123.76,8.2499]
[1720152649160,6.5852,123.81,123.74,20.2024]
[1720152649361,6.5852,123.81,123.75,28.2506]
[1720152649562,6.5852,123.81,123.75,20.17]
[1720152649865,6.5852,123.81,123.76,8.0801]
[1720152651894,6.5852,123.81,123.75,28.2506]
[1720152652266,6.5852,123.81,123.76,8.08]
[1720152653163,6.5852,123.81,123.77,8.0792]
[1720152653367,6.5852,123.81,123.76,20.1996]
[1720152653866,6.5852,123.81,123.75,28.2503]
[1720152653867,30.8752,123.81,123.75,20.0]
[1720152654072,30.8752,123.81,123.74,20.0]
[1720152654803,38.9525,123.81,123.7,22.90103499]
[1720152655093,30.8752,123.81,123.71,8.0833]
[1720152655588,30.8752,123.81,123.72,8.0827]
[1720152655991,30.8752,123.81,123.75,8.0806]
[1720152656179,30.8752,123.81,123.74,8.0812]
[1720152656794,30.8752,123.81,123.75,8.0806]
[1720152656995,6.5852,123.81,123.76,8.0798]
[1720152657201,6.5852,123.81,123.78,8.0782]
[1720152657497,6.5852,123.81,123.71,40.4141]
[1720152657794,6.5852,123.81,123.72,20.0]
[1720152658091,30.8752,123.81,123.74,20.2036]
[1720152658491,30.8752,123.81,123.74,28.2845]
[1720152658492,6.5852,123.81,123.74,28.2845]
[1720152658667,6.5852,123.81,123.74,20.2036]
[1720152658873,6.5852,123.81,123.75,8.2503]
[1720152659174,6.5852,123.81,123.76,8.0801]
[1720152659370,6.5852,123.81,123.75,8.2506]
[1720152660394,6.5852,123.81,123.75,0.17]
[1720152660578,6.5852,123.81,123.79,20.1948]
[1720152660890,15.2885,123.82,123.79,28.2728]
[1720152661069,15.2885,123.82,123.8,0.17]
[1720152661866,15.2885,123.82,123.8,8.2475]
[1720152662071,15.2885,123.82,123.8,0.17]
[1720152663394,15.2885,123.82,123.79,28.2727]
[1720152663607,15.2885,123.82,123.8,0.17]
[1720152664600,6.5103,123.84,123.81,8.0767]
[1720152664775,6.5103,123.84,123.8,8.2473]
[1720152664975,15.8042,123.85,123.81,40.1908]
[1720152665178,0.80677693,123.86,123.82,0.17]
[1720152665476,0.80677693,123.86,123.83,20.1874]
[1720152666299,0.80677693,123.86,123.82,8.246]
[1720152666890,0.80677693,123.86,123.8,28.2698]
[1720152667191,0.80677693,123.86,123.81,20.0]
[1720152667388,16.2082,123.85,123.78,8.0785]
[1720152667701,16.2082,123.85,123.81,8.0767]
[1720152668013,16.2082,123.85,123.82,8.0761]
[1720152668203,16.2082,123.85,123.81,20.1915]
[1720152668589,16.2082,123.85,123.78,20.1963]
[1720152668795,16.2082,123.85,123.79,0.17]
[1720152669116,16.2082,123.85,123.79,20.0]
[1720152669287,40.4982,123.85,123.79,20.0]
[1720152669906,16.2082,123.85,123.75,6.53700377]
[1720152670116,16.2082,123.85,123.8,20.193]
[1720152670688,16.2082,123.85,123.77,20.1984]
[1720152670893,16.2082,123.85,123.78,8.2487]
[1720152673611,30.4007,123.84,123.75,32.83016538]